fUST/lending_fUST_20240725
["ID","MTS","AMOUNT","RATE_DAILY","PERIOD"]
[333117902,1721875859728,-151.0,0.00013972,2]
[333117903,1721875859737,-500.0,0.00013972,2]
[333117904,1721875859747,-500.0,0.00013972,2]
[333117905,1721875859756,-1160.8,0.00013972,2]
[333117906,1721875859766,-1625.12,0.00013972,2]
[333117907,1721875859775,-510.42225362,0.00013972,2]
[333117908,1721875859786,-507.42634205,0.00013972,2]
[333117909,1721875859795,-500.0,0.00013972,2]
[333117910,1721875859804,-500.0,0.00013972,2]
[333117911,1721875859813,-508.08,0.00013972,2]
[333117912,1721875859823,-450.070613,0.00013972,2]
[333117913,1721875859832,-450.070613,0.00013972,2]
[333117914,1721875859842,-450.070613,0.00013972,2]
[333117915,1721875859852,-450.070613,0.00013972,2]
[333117916,1721875859861,-500.0,0.00013972,2]
[333117917,1721875859871,-344.630329,0.00013972,2]
[333117918,1721875859880,-344.630329,0.00013972,2]
[333117919,1721875859889,-162.74286103,0.00013972,2]
[333117920,1721875859900,-344.630329,0.00013972,2]
[333117921,1721875859909,-450.070613,0.00013972,2]
[333117922,1721875859918,-344.630329,0.00013972,2]
[333117923,1721875859927,-450.070613,0.00013972,2]
[333117924,1721875859936,-450.070613,0.00013972,2]
[333117925,1721875859946,-500.0,0.00013972,2]
[333117926,1721875859956,-450.070617,0.00013972,2]
[333117927,1721875859965,-500.0,0.00013972,2]
[333117928,1721875859975,-344.630329,0.00013972,2]
[333117929,1721875859986,-344.630329,0.00013972,2]
[333117930,1721875859997,-344.630329,0.00013972,2]
[333117931,1721875860006,-500.0,0.00013972,2]
[333117932,1721875860015,-344.630334,0.00013972,2]
[333117933,1721875860027,-500.0,0.00013972,2]
[333117934,1721875860037,-1326.689836,0.00013972,2]
[333117935,1721875860047,-1326.689836,0.00013972,2]
[333117936,1721875860056,-1326.689836,0.00013972,2]
[333117937,1721875860066,-1326.689836,0.00013972,2]
[333117938,1721875860075,-500.0,0.00013972,2]
[333117939,1721875860085,-500.0,0.00013972,2]
[333117940,1721875860094,-1326.689836,0.00013972,2]
[333117941,1721875860104,-503.83511573,0.00013972,2]
[333117942,1721875860116,-1326.689836,0.00013972,2]
[333117943,1721875860127,-1326.689836,0.00013972,2]
[333117944,1721875860138,-1326.689834,0.00013972,2]
[333117945,1721875860148,-1901.26,0.00013972,2]
[333117946,1721875860158,-1558.68,0.00013972,2]
[333117947,1721875860168,-500.0,0.00013972,2]
[333117948,1721875860179,-500.0,0.00013972,2]
[333117949,1721875860188,-500.0,0.00013972,2]
[333117950,1721875860198,-500.0,0.00013972,2]
[333117951,1721875860210,-500.0,0.00013972,2]
[333117952,1721875860220,-500.0,0.00013972,2]
[333117953,1721875860230,-500.0,0.00013972,2]
[333117954,1721875860244,-500.0,0.00013972,2]
[333117955,1721875860254,-607.48,0.00013972,2]
[333117956,1721875860264,-500.0,0.00013972,2]
[333117957,1721875860274,-500.0,0.00013972,2]
[333117958,1721875860286,-2230.471712,0.00013972,2]
[333117959,1721875860296,-2230.471712,0.00013972,2]
[333117960,1721875860311,-2230.471712,0.00013972,2]
[333117961,1721875860321,-2230.471712,0.00013972,2]
[333117962,1721875860330,-500.0,0.00013972,2]
[333117963,1721875860339,-2230.471712,0.00013972,2]
[333117964,1721875860350,-2230.471712,0.00013972,2]
[333117965,1721875860360,-500.0,0.00013972,2]
[333117966,1721875860369,-2230.471712,0.00013972,2]
[333117967,1721875860378,-2230.471719,0.00013972,2]
[333117968,1721875860388,-500.0,0.00013972,2]
[333117969,1721875860399,-500.0,0.00013972,2]
[333117970,1721875860412,-500.0,0.00013972,2]
[333117971,1721875860422,-500.0,0.00013972,2]
[333117972,1721875860433,-642.20477481,0.00013972,2]
[333117973,1721875860444,-500.0,0.00013972,2]
[333117974,1721875860455,-503.9968659,0.00013972,2]
[333117975,1721875860467,-500.0,0.00013972,2]
[333117976,1721875860476,-500.0,0.00013972,2]
[333117977,1721875860486,-500.0,0.00013972,2]
[333117978,1721875860495,-502.49655943,0.00013972,2]
[333117979,1721875860505,-500.0,0.00013972,2]
[333117980,1721875860518,-500.0,0.00013972,2]
[333117981,1721875860529,-500.0,0.00013972,2]
[333117982,1721875860542,-1057.56,0.00013972,2]
[333117983,1721875860551,-1114.59,0.00013972,2]
[333117984,1721875860560,-502.89416281,0.00013972,2]
[333117985,1721875860570,-500.0,0.00013972,2]
[333117986,1721875860578,-500.0,0.00013972,2]
[333117987,1721875860589,-500.0,0.00013972,2]
[333117988,1721875860599,-500.0,0.00013972,2]
[333117989,1721875860609,-505.54054925,0.00013972,2]
[333117990,1721875860621,-500.0,0.00013972,2]
[333117991,1721875860631,-500.0,0.00013972,2]
[333117992,1721875860643,-500.0,0.00013972,2]
[333117993,1721875860652,-250.65042989,0.00013972,2]
[333117994,1721875860662,-500.0,0.00013972,2]
[333117995,1721875860673,-500.0,0.00013972,2]
[333117996,1721875860683,-500.0,0.00013972,2]
[333117997,1721875860693,-3336.48,0.00013972,2]
[333117998,1721875860702,-500.0,0.00013972,2]
[333117999,1721875860711,-500.0,0.00013972,2]
[333118000,1721875860721,-500.0,0.00013972,2]
[333118001,1721875860730,-554.3,0.00013972,2]
[333118002,1721875860740,-500.0,0.00013972,2]
[333118003,1721875860749,-1348.15,0.00013972,2]
[333118004,1721875860758,-500.0,0.00013972,2]
[333118005,1721875860767,-507.03495205,0.00013972,2]
[333118006,1721875860777,-500.0,0.00013972,2]
[333118007,1721875860788,-500.0,0.00013972,2]
[333118008,1721875860798,-899.48,0.00013972,2]
[333118009,1721875860807,-509.23080394,0.00013972,2]
[333118010,1721875860817,-500.0,0.00013972,2]
[333118011,1721875860827,-506.17,0.00013972,2]
[333118012,1721875860836,-500.0,0.00013972,2]
[333118013,1721875860845,-500.0,0.00013972,2]
[333118014,1721875860854,-505.19402667,0.00013972,2]
[333118015,1721875860864,-500.0,0.00013972,2]
[333118016,1721875860873,-3664.09,0.00013972,2]
[333118017,1721875860883,-500.0,0.00013972,2]
[333118018,1721875860892,-500.0,0.00013972,2]
[333118019,1721875860902,-698.98,0.00013972,2]
[333118020,1721875860911,-679.16,0.00013972,2]
[333118021,1721875860920,-500.0,0.00013972,2]
[333118022,1721875860929,-500.0,0.00013972,2]
[333118023,1721875860938,-500.0,0.00013972,2]
[333118024,1721875860948,-500.0,0.00013972,2]
[333118025,1721875860959,-925.36,0.00013972,2]
[333118026,1721875860970,-500.0,0.00013972,2]
[333118027,1721875860979,-1588.58,0.00013972,2]
[333118028,1721875860989,-500.0,0.00013972,2]
[333118029,1721875861001,-926.04,0.00013972,2]
[333118030,1721875861012,-500.0,0.00013972,2]
[333118031,1721875861023,-2325.02,0.00013972,2]
[333118032,1721875861036,-500.0,0.00013972,2]
[333118033,1721875861045,-500.0,0.00013972,2]
[333118034,1721875861176,-500.0,0.00013972,2]
[333118035,1721875861187,-151.0,0.00013972,2]
[333118036,1721875861197,-179.0799,0.00013972,2]
[333118037,1721875861207,-500.0,0.00013972,2]
[333118038,1721875861219,-151.0,0.00013972,2]
[333118039,1721875861229,-151.0,0.00013972,2]
[333118040,1721875861239,-151.0,0.00013972,2]
[333118041,1721875861252,-151.757462,0.00013972,2]
[333118042,1721875861263,-2390.59,0.00013972,2]
[333118043,1721875861275,-500.0,0.00013972,2]
[333118044,1721875861291,-479.40444022,0.00013972,2]
[333118045,1721875861300,-500.0,0.00013972,2]
[333118046,1721875861310,-500.0,0.00013972,2]
[333118047,1721875861322,-500.0,0.00013972,2]
[333118048,1721875861333,-500.0,0.00013972,2]
[333118049,1721875861342,-858.59,0.00013972,2]
[333118050,1721875861352,-505.05542866,0.00013972,2]
[333118051,1721875861362,-500.0,0.00013972,2]
[333118052,1721875861372,-500.0,0.00013972,2]
[333118053,1721875861382,-4048.94,0.00013972,2]
[333118054,1721875861393,-503.45793881,0.00013972,2]
[333118055,1721875861402,-505.57660034,0.00013972,2]
[333118056,1721875861412,-666.46,0.00013972,2]
[333118057,1721875861421,-500.0,0.00013972,2]
[333118058,1721875861432,-500.0,0.00013972,2]
[333118059,1721875861441,-4149.97,0.00013972,2]
[333118060,1721875861451,-500.0,0.00013972,2]
[333118061,1721875861461,-500.0,0.00013972,2]
[333118062,1721875861471,-500.0,0.00013972,2]
[333118063,1721875861480,-520.96905912,0.00013972,2]
[333118064,1721875861490,-1880.94,0.00013972,2]
[333118065,1721875861499,-4693.11,0.00013972,2]
[333118066,1721875861510,-500.0,0.00013972,2]
[333118067,1721875861521,-1654.52,0.00013972,2]
[333118068,1721875861535,-500.0,0.00013972,2]
[333118069,1721875861545,-500.0,0.00013972,2]
[333118070,1721875861554,-1869.74,0.00013972,2]
[333118071,1721875861563,-500.0,0.00013972,2]
[333118072,1721875861573,-519.37377693,0.00013972,2]
[333118073,1721875861582,-504.28621617,0.00013972,2]
[333118074,1721875861593,-500.0,0.00013972,2]
[333118075,1721875861603,-1640.52,0.00013972,2]
[333118076,1721875861613,-500.0,0.00013972,2]
[333118077,1721875861624,-500.0,0.00013972,2]
[333118078,1721875861635,-151.0,0.00013972,2]
[333118079,1721875861647,-151.0,0.00013972,2]
[333118080,1721875861657,-151.0,0.00013972,2]
[333118081,1721875861669,-151.0,0.00013972,2]
[333118082,1721875861680,-1106.73,0.00013972,2]
[333118083,1721875861690,-500.0,0.00013972,2]
[333118084,1721875861701,-500.0,0.00013972,2]
[333118085,1721875861714,-500.0,0.00013972,2]
[333118086,1721875861724,-500.0,0.00013972,2]
[333118087,1721875861733,-7608.89,0.00013972,2]
[333118088,1721875861745,-500.0,0.00013972,2]
[333118089,1721875861755,-502.15345246,0.00013972,2]
[333118090,1721875861765,-500.0,0.00013972,2]
[333118091,1721875861775,-842.55,0.00013972,2]
[333118092,1721875861789,-503.8044581,0.00013972,2]
[333118093,1721875861799,-500.0,0.00013972,2]
[333118094,1721875861811,-682.47,0.00013972,2]
[333118095,1721875861820,-500.0,0.00013972,2]
[333118096,1721875861831,-500.0,0.00013972,2]
[333118097,1721875861842,-500.0,0.00013972,2]
[333118098,1721875861852,-500.0,0.00013972,2]
[333118099,1721875861862,-500.0,0.00013972,2]
[333118100,1721875861872,-505.39331902,0.00013972,2]
[333118101,1721875861883,-500.0,0.00013972,2]
[333118102,1721875861893,-238.101441,0.00013972,2]
[333118103,1721875861905,-238.101441,0.00013972,2]
[333118104,1721875861915,-557.74922447,0.00013972,2]
[333118105,1721875861927,-238.101441,0.00013972,2]
[333118106,1721875861938,-500.0,0.00013972,2]
[333118107,1721875861948,-500.0,0.00013972,2]
[333118108,1721875861959,-238.101441,0.00013972,2]
[333118109,1721875861970,-238.101441,0.00013972,2]
[333118110,1721875861979,-238.101445,0.00013972,2]
[333118111,1721875861989,-500.0,0.00013972,2]
[333118112,1721875861999,-501.33800739,0.00013972,2]
[333118113,1721875862011,-508.75111521,0.00013972,2]
[333118114,1721875862022,-12644.8,0.00013972,2]
[333118115,1721875862033,-500.0,0.00013972,2]
[333118116,1721875862044,-500.0,0.00013972,2]
[333118117,1721875862055,-568.83391376,0.00013972,2]
[333118118,1721875862065,-1420.41,0.00013972,2]
[333118119,1721875862075,-500.0,0.00013972,2]
[333118120,1721875862085,-236.07333441,0.00013972,2]
[333118121,1721875862094,-739.03,0.00013972,2]
[333118122,1721875862106,-500.0,0.00013972,2]
[333118123,1721875862115,-151.0,0.00013972,2]
[333118124,1721875862124,-151.0,0.00013972,2]
[333118125,1721875862134,-151.0,0.00013972,2]
[333118126,1721875862143,-151.0,0.00013972,2]
[333118127,1721875862152,-2515.49,0.00013972,2]
[333118128,1721875862161,-500.0,0.00013972,2]
[333118129,1721875862170,-500.0,0.00013972,2]
[333118130,1721875862180,-494.51979165,0.00013972,2]
[333118131,1721875862193,-914.29,0.00013972,2]
[333118132,1721875862203,-500.0,0.00013972,2]
[333118133,1721875862213,-500.0,0.00013972,2]
[333118134,1721875862223,-4894.77,0.00013972,2]
[333118135,1721875862236,-239.38223104,0.00013972,2]
[333118136,1721875862249,-500.0,0.00013972,2]
[333118137,1721875862259,-6225.92,0.00013972,2]
[333118138,1721875862269,-2619.02,0.00013972,2]
[333118139,1721875862279,-500.0,0.00013972,2]
[333118140,1721875862291,-500.0,0.00013972,2]
[333118141,1721875862300,-550.50216519,0.00013972,2]
[333118142,1721875862309,-500.0,0.00013972,2]
[333118143,1721875862320,-500.0,0.00013972,2]
[333118144,1721875862329,-500.0,0.00013972,2]
[333118145,1721875862338,-1732.57,0.00013972,2]
[333118146,1721875862348,-754.44,0.00013972,2]
[333118147,1721875862359,-500.0,0.00013972,2]
[333118148,1721875862370,-2382.24,0.00013972,2]
[333118149,1721875862379,-500.0,0.00013972,2]
[333118150,1721875862388,-10306.35,0.00013972,2]
[333118151,1721875862398,-500.0,0.00013972,2]
[333118152,1721875862407,-500.0,0.00013972,2]
[333118153,1721875862416,-507.84784965,0.00013972,2]
[333118154,1721875862425,-501.71022268,0.00013972,2]
[333118155,1721875862435,-500.0,0.00013972,2]
[333118156,1721875862444,-500.0,0.00013972,2]
[333118157,1721875862453,-500.0,0.00013972,2]
[333118158,1721875862462,-500.0,0.00013972,2]
[333118159,1721875862471,-500.0,0.00013972,2]
[333118160,1721875862481,-1908.73,0.00013972,2]
[333118161,1721875862490,-500.0,0.00013972,2]
[333118162,1721875862501,-500.0,0.00013972,2]
[333118163,1721875862511,-880.98,0.00013972,2]
[333118164,1721875862520,-813.34,0.00013972,2]
[333118165,1721875862532,-500.0,0.00013972,2]
[333118166,1721875862544,-500.0,0.00013972,2]
[333118167,1721875862555,-500.0,0.00013972,2]
[333118168,1721875862567,-765.52,0.00013972,2]
[333118169,1721875862580,-1681.64,0.00013972,2]
[333118170,1721875862591,-534.26,0.00013972,2]
[333118171,1721875862603,-507.21079012,0.00013972,2]
[333118172,1721875862613,-500.0,0.00013972,2]
[333118173,1721875862622,-1804.47,0.00013972,2]
[333118174,1721875862635,-941.63,0.00013972,2]
[333118175,1721875862646,-4217.53,0.00013972,2]
[333118176,1721875862657,-8489.62,0.00013972,2]
[333118177,1721875862669,-500.0,0.00013972,2]
[333118178,1721875862682,-1258.03,0.00013972,2]
[333118179,1721875862693,-2067.96819,0.00013972,2]
[333118180,1721875862704,-2067.96819,0.00013972,2]
[333118181,1721875862716,-2067.96819,0.00013972,2]
[333118182,1721875862727,-500.0,0.00013972,2]
[333118183,1721875862738,-500.0,0.00013972,2]
[333118184,1721875862748,-500.0,0.00013972,2]
[333118185,1721875862759,-756.94,0.00013972,2]
[333118186,1721875862769,-500.78852784,0.00013972,2]
[333118187,1721875862779,-2067.96819,0.00013972,2]
[333118188,1721875862795,-1039.92,0.00013972,2]
[333118189,1721875862805,-2067.96819,0.00013972,2]
[333118190,1721875862814,-2067.968182,0.00013972,2]
[333118191,1721875862824,-1978.64,0.00013972,2]
[333118192,1721875862835,-536.19578988,0.00013972,2]
[333118193,1721875862846,-451.89472378,0.00013972,2]
[333118341,1721876834142,-160.00381439,9.999e-05,2]
[333118342,1721876834166,-3.83066683,9.999e-05,2]
[333118343,1721876970135,-159.35541903,9.999e-05,2]
[333118344,1721876970158,-731.30595831,9.999e-05,2]
[333118345,1721876970181,-811.8572783,9.999e-05,2]
[333118346,1721876970204,-200.0,0.0001,2]
[333118347,1721876970229,-665.1,0.00010959,2]
[333118348,1721876970251,-554.25,0.00010959,2]
[333118349,1721876970273,-461.87,0.00010959,2]
[333118350,1721876970294,-384.89,0.00010959,2]
[333118351,1721876970317,-400.0,0.0001137,2]
[333118352,1721876970339,-24900.0,0.00011391,2]
[333118353,1721876970363,-163.573355,0.00011972,2]
[333118354,1721876970384,-163.573355,0.00012017,2]
[333118355,1721876970407,-163.573355,0.00012061,2]
[333118356,1721876970428,-458.0246873,0.00012069,2]
[333118357,1721876970451,-163.573355,0.00012106,2]
[333118358,1721876970474,-163.573355,0.0001215,2]
[333118359,1721876970496,-163.573355,0.00012195,2]
[333118360,1721876970520,-163.573355,0.00012239,2]
[333118361,1721876970542,-163.573355,0.00012284,2]
[333118362,1721876972772,320.74,0.00010959,2]
[333118363,1721876981989,1666.80918518,9.999e-05,2]
[333118636,1721877035762,-14604.93757385,9.999e-05,2]
[333118638,1721877035773,-205.33820178,0.0001,2]
[333118640,1721877035787,-267.29,0.00010959,2]
[333118642,1721877035796,-222.74,0.00010959,2]
[333118644,1721877035807,-185.62,0.00010959,2]
[333118646,1721877035816,-154.68,0.00010959,2]
[333118648,1721877035826,-773.42,0.00010959,2]
[333118650,1721877035836,-154.71377951,0.00012119,2]
[333118652,1721877035846,-731.30595831,0.0001212,2]
[333118654,1721877035856,-163.573355,0.00012363,2]
[333118656,1721877035867,-163.573355,0.0001247,2]
[333118658,1721877035877,-163.573355,0.00012577,2]
[333118660,1721877035887,-163.573355,0.00012685,2]
[333118662,1721877035897,-163.573355,0.00012792,2]
[333118664,1721877035908,-163.573355,0.000129,2]
[333118666,1721877035917,-1813.93771979,0.000129,2]
[333118668,1721877035928,-163.573355,0.00013007,2]
[333118670,1721877035938,-1813.93771973,0.00013248,2]
[333118672,1721877035948,-306.0,0.00013354,2]
[333118674,1721877035957,-200.0,0.00013425,2]
[333118676,1721877035968,-307.348326,0.00013534,2]
[333118678,1721877035979,-153.0,0.00013534,2]
[333118680,1721877035988,-153.0,0.00013534,2]
[333118682,1721877035998,-153.0,0.00013534,2]
[333118684,1721877036008,-206.7208342,0.00013534,2]
[333118686,1721877036018,-153.0,0.00013534,2]
[333118688,1721877036033,-206.7208342,0.00013534,2]
[333118690,1721877036043,-206.7208342,0.00013534,2]
[333118692,1721877036052,-153.0,0.00013534,2]
[333118694,1721877036061,-200.0,0.00013598,2]
[333118696,1721877036071,-150.112233,0.000136,2]
[333118698,1721877036080,-150.112233,0.000136,2]
[333118700,1721877036090,-150.112233,0.000136,2]
[333118702,1721877036099,-150.112233,0.000136,2]
[333118704,1721877036109,-502.02627204,0.00013698,2]
[333118706,1721877036119,-2007.16,0.00013698,2]
[333118708,1721877036128,-2007.16,0.00013698,2]
[333118710,1721877036138,-2007.16,0.00013698,2]
[333118712,1721877036148,-2007.16,0.00013698,2]
[333118714,1721877036157,-2007.16,0.00013698,2]
[333118716,1721877036168,-2007.16,0.00013698,2]
[333118718,1721877036177,-2007.16,0.00013698,2]
[333118720,1721877036187,-2007.16,0.00013698,2]
[333118722,1721877036196,-2007.16,0.00013698,2]
[333118725,1721877036210,-2007.16,0.00013698,2]
[333118727,1721877036221,-1565.52479708,0.00013698,2]
[333118976,1721877038804,-441.63520292,0.00013698,2]
[333118978,1721877038814,-2007.16,0.00013698,2]
[333118980,1721877038823,-2007.16,0.00013698,2]
[333118982,1721877038833,-2007.16,0.00013698,2]
[333118984,1721877038842,-2007.16,0.00013698,2]
[333118986,1721877038852,-2007.16,0.00013698,2]
[333118988,1721877038861,-2007.16,0.00013698,2]
[333118990,1721877038870,-2007.16,0.00013698,2]
[333118992,1721877038880,-2007.16,0.00013698,2]
[333118994,1721877038889,-2007.16,0.00013698,2]
[333118996,1721877038899,-2007.16,0.00013698,2]
[333118998,1721877038909,-2007.16,0.00013698,2]
[333119000,1721877038919,-2007.16,0.00013698,2]
[333119002,1721877038928,-2007.35792441,0.00013698,2]
[333119004,1721877038937,-500.0,0.00013698,2]
[333119006,1721877038947,-501.25334069,0.00013698,2]
[333119007,1721877038956,-500.0,0.00013698,2]
[333119009,1721877038965,-502.98975606,0.00013698,2]
[333119011,1721877038974,-176.89663332,0.00013698,2]
[333119013,1721877038984,-500.0,0.00013698,2]
[333119015,1721877038993,-500.0,0.00013698,2]
[333119017,1721877039003,-500.0,0.00013698,2]
[333119019,1721877039012,-513.68775755,0.00013698,2]
[333119021,1721877039022,-500.0,0.00013698,2]
[333119023,1721877039031,-500.0,0.00013698,2]
[333119025,1721877039041,-500.0,0.00013698,2]
[333119027,1721877039050,-500.0,0.00013698,2]
[333119029,1721877039060,-500.0,0.00013698,2]
[333119031,1721877039069,-222.77639781,0.00013698,2]
[333119033,1721877039079,-503.92135759,0.00013698,2]
[333119035,1721877039088,-500.0,0.00013698,2]
[333119037,1721877039097,-500.0,0.00013698,2]
[333119039,1721877039106,-271.33520489,0.00013698,2]
[333119041,1721877039115,-500.0,0.00013698,2]
[333119043,1721877039125,-592.88262029,0.00013698,2]
[333119045,1721877039134,-1030.52,0.00013698,2]
[333119047,1721877039143,-500.0,0.00013698,2]
[333119049,1721877039153,-1115.07,0.00013698,2]
[333119051,1721877039163,-500.0,0.00013698,2]
[333119053,1721877039173,-520.73279932,0.00013698,2]
[333119058,1721877039184,-500.0,0.00013698,2]
[333119061,1721877039195,-500.0,0.00013698,2]
[333119064,1721877039205,-255.15035679,0.00013698,2]
[333119069,1721877039225,-504.18140264,0.00013698,2]
[333119071,1721877039238,-500.0,0.00013698,2]
[333119073,1721877039249,-492.6506553,0.00013698,2]
[333119076,1721877039261,-500.0,0.00013698,2]
[333119078,1721877039275,-509.66911467,0.00013698,2]
[333119080,1721877039286,-520.23699786,0.00013698,2]
[333119082,1721877039298,-562.90123855,0.00013698,2]
[333119084,1721877039309,-502.03324381,0.00013698,2]
[333119087,1721877039321,-500.0,0.00013698,2]
[333119089,1721877039331,-521.79459093,0.00013698,2]
[333119091,1721877039343,-500.0,0.00013698,2]
[333119093,1721877039354,-500.0,0.00013698,2]
[333119095,1721877039366,-500.0,0.00013698,2]
[333119098,1721877039378,-500.0,0.00013698,2]
[333119100,1721877039392,-500.0,0.00013698,2]
[333119102,1721877039403,-632.27628792,0.00013698,2]
[333119104,1721877039414,-500.0,0.00013698,2]
[333119106,1721877039425,-500.0,0.00013698,2]
[333119109,1721877039437,-540.84970233,0.00013698,2]
[333119111,1721877039448,-500.0,0.00013698,2]
[333119114,1721877039462,-500.0,0.00013698,2]
[333119116,1721877039474,-500.0,0.00013698,2]
[333119118,1721877039485,-500.0,0.00013698,2]
[333119120,1721877039498,-515.2515739,0.00013698,2]
[333119123,1721877039510,-500.0,0.00013698,2]
[333119125,1721877039521,-500.0,0.00013698,2]
[333119127,1721877039532,-569.70964056,0.00013698,2]
[333119129,1721877039542,-500.0,0.00013698,2]
[333119131,1721877039551,-500.0,0.00013698,2]
[333119133,1721877039562,-500.0,0.00013698,2]
[333119136,1721877039574,-500.0,0.00013698,2]
[333119138,1721877039585,-621.66820482,0.00013698,2]
[333119140,1721877039599,-511.1433934,0.00013698,2]
[333119142,1721877039610,-260.94639549,0.00013698,2]
[333119144,1721877039623,-500.0,0.00013698,2]
[333119147,1721877039634,-500.0,0.00013698,2]
[333119149,1721877039646,-500.0,0.00013698,2]
[333119151,1721877039658,-500.0,0.00013698,2]
[333119153,1721877039670,-506.84220117,0.00013698,2]
[333119156,1721877039681,-500.0,0.00013698,2]
[333119158,1721877039691,-500.0,0.00013698,2]
[333119160,1721877039700,-500.0,0.00013698,2]
[333119162,1721877039710,-500.0,0.00013698,2]
[333119164,1721877039721,-500.0,0.00013698,2]
[333119166,1721877039732,-500.0,0.00013698,2]
[333119168,1721877039743,-500.0,0.00013698,2]
[333119170,1721877039755,-504.53112401,0.00013698,2]
[333119173,1721877039768,-500.0,0.00013698,2]
[333119175,1721877039778,-500.0,0.00013698,2]
[333119177,1721877039790,-500.0,0.00013698,2]
[333119179,1721877039801,-500.0,0.00013698,2]
[333119181,1721877039813,-500.0,0.00013698,2]
[333119183,1721877039824,-182.24329045,0.00013698,2]
[333119186,1721877039833,-500.0,0.00013698,2]
[333119188,1721877039843,-500.0,0.00013698,2]
[333119190,1721877039853,-511.85615867,0.00013698,2]
[333119192,1721877039863,-503.4661935,0.00013698,2]
[333119194,1721877039873,-503.71713332,0.00013698,2]
[333119196,1721877039883,-372.81444294,0.00013698,2]
[333119198,1721877039894,-500.0,0.00013698,2]
[333119200,1721877039905,-500.0,0.00013698,2]
[333119202,1721877039914,-500.0,0.00013698,2]
[333119204,1721877039924,-229.79555965,0.00013698,2]
[333119206,1721877039934,-500.0,0.00013698,2]
[333119208,1721877039944,-500.0,0.00013698,2]
[333119210,1721877039955,-500.0,0.00013698,2]
[333119212,1721877039966,-500.0,0.00013698,2]
[333119214,1721877039975,-2905.55,0.00013698,2]
[333119216,1721877039985,-1428.79,0.00013698,2]
[333119219,1721877039998,-500.0,0.00013698,2]
[333119221,1721877040009,-500.0,0.00013698,2]
[333119223,1721877040020,-500.0,0.00013698,2]
[333119225,1721877040033,-500.0,0.00013698,2]
[333119227,1721877040043,-500.0,0.00013698,2]
[333119229,1721877040053,-501.15920717,0.00013698,2]
[333119232,1721877040066,-516.97210084,0.00013698,2]
[333119234,1721877040077,-1962.43,0.00013698,2]
[333119236,1721877040086,-500.0,0.00013698,2]
[333119238,1721877040096,-500.0,0.00013698,2]
[333119240,1721877040106,-500.0,0.00013698,2]
[333119242,1721877040115,-621.26972532,0.00013698,2]
[333119244,1721877040126,-500.0,0.00013698,2]
[333119246,1721877040137,-649.99073554,0.00013698,2]
[333119248,1721877040146,-500.0,0.00013698,2]
[333119250,1721877040158,-500.0,0.00013698,2]
[333119252,1721877040168,-500.0,0.00013698,2]
[333119255,1721877040180,-500.0,0.00013698,2]
[333119257,1721877040191,-500.0,0.00013698,2]
[333119259,1721877040202,-500.0,0.00013698,2]
[333119261,1721877040213,-500.0,0.00013698,2]
[333119263,1721877040222,-500.0,0.00013698,2]
[333119265,1721877040232,-500.0,0.00013698,2]
[333119267,1721877040242,-505.91353389,0.00013698,2]
[333119269,1721877040251,-500.0,0.00013698,2]
[333119271,1721877040261,-500.0,0.00013698,2]
[333119273,1721877040271,-505.97928262,0.00013698,2]